Cogmind - Beta 16.1 @@@ ROGUE MODE // 2026.04.24 @ 09:17:15 Player: Chocolateburger Result: Self-destructed Performance ------------- Evolutions (1) 500 Regions Visited (3) 600 Robots Destroyed (42) 210 Value Destroyed (1027) 1027 Prototype IDs (4) 80 Alien Tech Used (0) 0 Bonus (0) 0 TOTAL SCORE: 2417 Bonus ------- None Cogmind --------- Core Integrity 305/400 Matter 196/300 Energy 125/125 System Corruption 0% Temperature Cool (0) Movement Rolling (175) Ox5 Location -9/Materials Parts ------- > --- POWER (1) -------- Light Ion Engine > --- PROPULSION (3) --- Light Treads Light Treads Compact Wheel > --- UTILITY (3) ------ Improved Heat Sink Huge Storage Unit Light Armor Plating > --- WEAPON (2) ------- Medium Laser Beam Rifle > --- INVENTORY (25) --- Light Nuclear Core Light Nuclear Core Light Nuclear Core Light Nuclear Core EM Pulse Gun Medium Laser Particle Gun Particle Gun Particle Gun Grenade Launcher Grenade Launcher Peak State ------------ > --- POWER ------------ Ion Engine > --- PROPULSION ------- Light Treads Light Treads Compact Wheel > --- UTILITY ---------- Improved Heat Sink Huge Storage Unit Light Armor Plating > --- WEAPON ----------- Medium Laser Beam Rifle > --- INVENTORY -------- Light Ion Engine Light Nuclear Core Light Nuclear Core Light Nuclear Core Light Nuclear Core EM Pulse Gun Medium Laser Particle Gun Particle Gun Particle Gun Grenade Launcher Grenade Launcher [Rating: 14] Favorites ----------- Power Ion Engine Engine Ion Engine Propulsion Compact Wheel Treads Light Treads Wheel Compact Wheel Utility Huge Storage Unit Device Improved Heat Sink Storage Huge Storage Unit Processor Visual Processing Unit Protection Light Armor Plating Weapon Light Assault Rifle Energy Gun Medium Laser Ballistic Gun Light Assault Rifle Ballistic Cannon Light Cannon Launcher Grenade Launcher Build | -11 -10 -10 -9 ------- Run | Yrd Mat Min Mat Slots Evolved 2 | . . . 2 Power . | . . . . Propulsion 1 | . . . 1 Utility 1 | . . . 1 Weapon . | . . . . Parts Attached 31 | 8 4 10 9 Power 4 | 1 . 1 2 Engine 4 | 1 . 1 2 Core . | . . . . Reactor . | . . . . Propulsion 10 | 2 2 3 3 Treads 3 | . . 1 2 Leg . | . . . . Wheel 7 | 2 2 2 1 Hover . | . . . . Flight . | . . . . Utility 8 | 2 2 2 2 Device 2 | 1 . 1 . Storage 3 | 1 1 . 1 Processor 1 | . . 1 . Hackware . | . . . . Protection 2 | . 1 . 1 Artifact . | . . . . Weapon 9 | 3 . 4 2 Energy Gun 3 | 1 . 1 1 Energy Cannon . | . . . . Ballistic Gun 4 | 2 . 1 1 Ballistic Cannon 1 | . . 1 . Launcher 1 | . . 1 . Special Weapon . | . . . . Impact Weapon . | . . . . Slashing Weapon . | . . . . Piercing Weapon . | . . . . Special Melee Weapon . | . . . . Unidentified Prototypes . | . . . . Parts Lost 16 | . 5 5 6 Power 2 | . 1 . 1 Propulsion 7 | . 3 1 3 Utility 2 | . 1 1 . Weapon 5 | . . 3 2 Highest Loss Streak 4 | . 4 4 4 To Critical Strikes . | . . . . Average Backups 11 | 4 9 13 15 Power 3 | . 1 4 5 Propulsion 2 | 2 3 1 1 Utility . | . . . . Weapon 5 | . 3 7 8 Tool/Special . | . . . . Unused Backups 8 | . . . 8 Power 4 | . . . 4 Propulsion . | . . . . Utility . | . . . . Weapon 4 | . . . 4 Tool/Special . | . . . . Average Slot Usage (%) 87 | . 79 97 91 Engine 9 | . 6 13 10 Treads 3 | . . 5 9 Wheel 21 | . 20 22 20 Device 5 | . 6 . 11 Storage 13 | . 14 14 11 Processor 2 | . . 10 . Protection 3 | . 2 . 6 Energy Gun 5 | . . 13 5 Ballistic Gun 19 | . 28 6 16 Ballistic Cannon 1 | . . 5 . Peak Build Rating 14 | 7 7 12 14 Average Rating 8 | 5 6 10 12 On Entrance 6 | . 7 7 12 Avg Prop Armor Cover (%) 13 | . . 14 12 Naked Turns . | . . . . Heaviest Build 94 | 14 88 90 94 Greatest Support 32 | 26 26 32 32 Greatest Overweight (x) 5 | . 5 5 5 Average Overweight (x) 3 | . 4 2 2 Largest Inventory Capacity 25 | 8 25 25 25 Average Capacity 23 | 7 24 25 25 Most Carried 17 | 6 13 17 17 Average Carried 11 | 4 9 13 15 Final Capacity 25 | 8 25 25 25 Final Carried 16 | 5 13 16 11 Class Distribution -------------------- 77% | Mutant 22% | Scavenger-Mutant Dominant Class ---------------- Mutant | -10/Materials Mutant | -10/Mines Scavenger-Mutant | -9/Materials Resources | -11 -10 -10 -9 ----------- Run | Yrd Mat Min Mat Matter Collected 666 | 291 121 146 108 Remotely . | . . . . Salvage Created 1360 | 132 499 314 415 Parts 88 | 12 31 24 21 Haulers Intercepted 1 | . 1 . . Recyclers Shooed 1 | . 1 . . Parts Field Recycled . | . . . . Retrieved Matter . | . . . . Parts Self-Destructed . | . . . . Prevented . | . . . . Parts Restored . | . . . . Kills | -11 -10 -10 -9 ------- Run | Yrd Mat Min Mat Combat Hostiles Destroyed 30 | . 10 10 10 Guns 21 | . 10 5 6 AOE 9 | . . 5 4 Classes Destroyed 9 | 2 6 . 1 Builder 2 | . 1 . 1 Tunneler 4 | 3 . 1 . Hauler 1 | . 1 . . Recycler 3 | 1 . 1 1 Operator 1 | . 1 . . Watcher 1 | . 1 . . Swarmer 8 | . 2 6 . Grunt 18 | . 8 4 6 Sentry 4 | . . . 4 Best Kill Streak 6 | 2 4 3 6 Combat Bots Only 4 | . 4 3 4 Max Kills in Single Turn 3 | 1 1 3 2 Gunslinging . | . . . . Exploded 3 | . . 3 2 Melee . | . . . . Uniques/NPCs Destroyed . | . . . . Combat | -11 -10 -10 -9 -------- Run | Yrd Mat Min Mat Hostile Shots Fired 172 | . 53 56 63 Missed 48 | . 14 13 21 Hits 124 | . 39 43 42 Projectile 124 | . 39 43 42 Critical Strikes 5 | . 1 3 1 Damage Taken 1659 | . 483 572 604 Core 277 | . 80 102 95 Absorbed by Shields . | . . . . Core Remaining (%) 63 | 100 . 27 . Volleys Fired 125 | 15 51 19 40 Largest 2 | 2 2 2 2 Hottest 115 | 70 40 115 106 Shots Fired 241 | 30 102 35 74 Gun 231 | 30 102 30 69 Cannon 3 | . . 3 . Launcher 7 | . . 2 5 Special . | . . . . Kinetic 181 | 15 102 12 52 Thermal 53 | 15 . 21 17 Explosive 7 | . . 2 5 Electromagnetic . | . . . . Robot Hit Streak 13 | 7 13 10 11 Robot Miss Streak 5 | 3 5 2 3 Penetration Max . | . . . . Secondary Targets 3 | . . 2 1 Max Gunslinging Chain 1 | . . 1 1 Shots Hit Robots 155 | 18 58 25 54 Core Hits 88 | 6 32 18 32 Critical Kills . | . . . . Critical Parts Destroyed 2 | . 2 . . Critical Strikes 6 | . 2 2 2 Burn 4 | . . 2 2 Destroy 2 | . 2 . . Melee Attacks . | . . . . Impact . | . . . . Slashing . | . . . . Piercing . | . . . . Sneak Attacks . | . . . . Combat Hostiles . | . . . . Follow-up Attacks . | . . . . Damage Inflicted 1986 | 174 496 492 824 Guns 1465 | 174 496 297 498 Cannons 34 | . . 34 . Explosions 487 | . . 161 326 Melee . | . . . . Ramming . | . . . . Kinetic 983 | 88 496 103 296 Thermal 516 | 86 . 228 202 Explosive 487 | . . 161 326 Electromagnetic . | . . . . Impact . | . . . . Slashing . | . . . . Piercing . | . . . . Highest Corruption . | . . . . Average Corruption . | . . . . Corruption Purged . | . . . . Corruption Blocked . | . . . . Overload Shots . | . . . . Overflow Damage . | . . . . Projectiles . | . . . . Explosions . | . . . . Melee . | . . . . Knockbacks 1 | . . 1 . Impact . | . . . . Kinetic 1 | . . 1 . Secondary . | . . . . Self-Inflicted Damage 85 | . . 50 35 Shots 5 | . . 2 3 Rammed . | . . . . Targets Rammed . | . . . . Kicked . | . . . . Crushed . | . . . . Highest Temperature 230 | 90 18 230 42 Average Temperature 49 | 36 7 86 10 Received Heat Transfer 840 | . 270 312 258 Siege Activations . | . . . . Martial Activations . | . . . . Shielding Activations . | . . . . Robots Disrupted . | . . . . Combat Hostiles . | . . . . Robots Corrupted . | . . . . Combat Hostiles . | . . . . Parts Fried . | . . . . Impact Corruptions . | . . . . Robots Melted . | . . . . Combat Hostiles . | . . . . Parts Melted 3 | . . 2 1 Heat Transferred 1665 | 259 . 703 703 Parts Sabotaged . | . . . . Parts Stolen . | . . . . Parts Stripped . | . . . . Power Chain Reactions . | . . . . Alert | -11 -10 -10 -9 ------- Run | Yrd Mat Min Mat Maximum Alert Level . | . . . . Low Security (%) 100 | 100 100 100 100 Level 1 . | . . . . Level 2 . | . . . . Level 3 . | . . . . Level 4 . | . . . . Level 5 . | . . . . High Security . | . . . . Max Security . | . . . . Peak Influence 170 | 10 170 141 142 Initial 35 | . . 5 35 Average 56 | 1 61 59 63 Influence Increases 933 | 20 354 271 288 Destroy 0b10 Robot/C 600 | . 200 200 200 Destroy 0b10 Robot/NC 60 | 20 20 10 10 Destroy Leader 144 | . 44 40 60 Successful Hack 20 | . 15 . 5 Destroy Structure 34 | . . 21 13 Lose Combat Pursuer 75 | . 75 . . Influence Decreases 825 | 20 339 196 270 Entered New Map 65 | . . 10 55 Time Decay 640 | 20 289 171 160 Lost Part 120 | . 50 15 55 Squads Dispatched 3 | . 2 . 1 Investigation 2 | . 2 . . Extermination . | . . . . Reinforcement 1 | . . . 1 Assault . | . . . . Garrison . | . . . . Intercept . | . . . . Searches Triggered . | . . . . Construction Impeded . | . . . . Haulers Reinforced . | . . . . Active Scanning Responses . | . . . . Cargo Convoy Interrupts . | . . . . Stealth | -11 -10 -10 -9 --------- Run | Yrd Mat Min Mat Distress Signals 1 | . . . 1 Communications Jammed . | . . . . Distress Signals . | . . . . Times Spotted 42 | . 17 10 15 Peak Tracking Total 8 | . 5 3 8 Tactical Retreats 3 | . 3 . . Traps | -11 -10 -10 -9 ------- Run | Yrd Mat Min Mat Traps Triggered 1 | . 1 . . Indirectly . | . . . . Trap Hack Attempts . | . . . . Triggered . | . . . . Disarmed . | . . . . Reprogrammed . | . . . . Reused . | . . . . Traps Extracted . | . . . . Installed . | . . . . Triggered . | . . . . Machines | -11 -10 -10 -9 ---------- Run | Yrd Mat Min Mat Machines Disabled . | . . . . Max in Single Turn . | . . . . Machines Repaired . | . . . . Machines Dismantled . | . . . . Machines Sabotaged . | . . . . Overloaded Fab Kills . | . . . . Hacking | -11 -10 -10 -9 --------- Run | Yrd Mat Min Mat Machines Accessed 4 | . 3 . 1 Terminals 4 | . 3 . 1 Fabricators . | . . . . Repair Stations . | . . . . Recycling Units . | . . . . Scanalyzers . | . . . . Garrison Access . | . . . . Total Hacks 11 | . 7 . 4 Successful 6 | . 4 . 2 Failed 5 | . 3 . 2 Catastrophic 1 | . 1 . . Database Lockouts . | . . . . Manual 8 | . 4 . 4 Terminals 11 | . 7 . 4 Fabricators . | . . . . Repair Stations . | . . . . Recycling Units . | . . . . Scanalyzers . | . . . . Garrison Access . | . . . . Terminal Hacks 2 | . 2 . . Prototype ID Bank 2 | . 2 . . Fabricator Hacks . | . . . . Repair Station Hacks . | . . . . Recycling Unit Hacks . | . . . . Scanalyzer . | . . . . Garrison Access Hacks . | . . . . Unauthorized Hacks 4 | . 2 . 2 Terminals 4 | . 2 . 2 Assimilate 1 | . . . 1 Botnet 3 | . 2 . 1 Fabricators . | . . . . Repair Stations . | . . . . Recycling Units . | . . . . Scanalyzers . | . . . . Garrison Access . | . . . . Data Cores Recovered . | . . . . Used . | . . . . Hacking Detections 4 | . 3 . 1 Full Trace Events 2 | . 1 . 1 Feedback Events . | . . . . Feedback Blocked . | . . . . Robot Schematics Acquired . | . . . . Robots Built . | . . . . Authchips . | . . . . Time . | . . . . Total Robot Build Rating . | . . . . Part Schematics Acquired . | . . . . Parts Built . | . . . . Authchips . | . . . . Time . | . . . . Total Part Build Rating . | . . . . Part Studies Acquired . | . . . . Parts Repaired . | . . . . Time . | . . . . Parts Recycled . | . . . . Recycled Matter . | . . . . Retrieved Matter . | . . . . Retrieved Components . | . . . . Parts Scanalyzed . | . . . . Part Schematics Acquired . | . . . . Parts Damaged . | . . . . Bothacking | -11 -10 -10 -9 ------------ Run | Yrd Mat Min Mat Used RIF Installer . | . . . . Robots Hacked . | . . . . Non-combat . | . . . . Combat . | . . . . Robot Hacks Applied . | . . . . Relay Couplers Released . | . . . . Fabnet Peak Effective % . | . . . . Robots Rewired . | . . . . Allies Hacked . | . . . . Hacks Repelled . | . . . . Allies | -11 -10 -10 -9 -------- Run | Yrd Mat Min Mat Total Allies . | . . . . Largest Group . | . . . . Highest-Rated Group . | . . . . Highest-Rated Ally . | . . . . Total Orders . | . . . . Ally Attacks . | . . . . Total Damage . | . . . . Kills . | . . . . Allies Corrupted . | . . . . Allies Melted . | . . . . Intel | -11 -10 -10 -9 ------- Run | Yrd Mat Min Mat Active Infowar (turns) 673 | 12 335 326 . Optics 326 | . . 326 . Seismic 347 | 12 335 . . Robot Analysis Total . | . . . . Derelict Logs Recovered 1 | . . 1 . Drone Launches . | . . . . Drone Recoveries . | . . . . Exploration | -11 -10 -10 -9 ------------- Run | Yrd Mat Min Mat Turns Passed 1658 | 124 762 425 347 Spaces Moved 833 | 74 376 227 156 Core 10 | 10 . . . Treads . | . . . . Legs . | . . . . Wheels 823 | 64 376 227 156 Hover . | . . . . Flight . | . . . . Fastest Speed 50 | 50 90 130 130 Average Speed 142 | 84 156 144 134 Slowest Speed 175 | 90 175 175 175 Overloaded Moves . | . . . . Propulsion Burnouts . | . . . . Robots Hopped . | . . . . Potential Cave-ins . | . . . . Cave-ins Triggered . | . . . . Exploration Rate (%) 29 | 4 51 41 20 Regions Visited 3 Branch Regions 1 Pre-discovered Areas 1 | . . 1 . Known Exits Taken . | . . . . Unknown Exits Taken 3 | 1 1 1 . Scrap Searched 1 | . . 1 . Spaces Dug . | . . . . Terrain Destroyed 32 | . . 21 11 Melee . | . . . . Projectile . | . . . . AOE 32 | . . 21 11 Terrain Rammed . | . . . . Walls Destroyed . | . . . . Machines Disabled . | . . . . Actions | -11 -10 -10 -9 --------- Run | Yrd Mat Min Mat Total 1093 | 107 470 289 227 Wait 56 | . 27 18 11 Move 830 | 73 375 226 156 Hop . | . . . . Pick Up 39 | 11 12 11 5 Fast Attach 1 | 1 . . . Attach 25 | 6 3 8 8 Detach . | . . . . Swap 13 | 1 1 6 5 Drop 4 | . 1 1 2 Fire 125 | 15 51 19 40 Melee . | . . . . Ram . | . . . . Kick . | . . . . Crush . | . . . . Escape Stasis . | . . . . Rewire . | . . . . Trap . | . . . . Miscellaneous . | . . . . Route ------- -11/Scrapyard -10/Materials (discovered 4 exits: *Mat x2 / [*Min x2]) -10/Mines -9/Materials (discovered 2 exits: Mat / [*Min]) History --------- Turn | Location | Event 9 | -11/Scrapyard | Discovered new exit (range 16) 125 | -11/Scrapyard | Entered Materials 270 | -10/Materials | Discovered new exit (range 5) 311 | -10/Materials | Build established: Mutant 354 | -10/Materials | Discovered new exit (range 11) 502 | -10/Materials | Lost 4 parts (1p2n1u) 523 | -10/Materials | Discovered new exit (range 12) 655 | -10/Materials | Discovered new exit (range 12) 887 | -10/Materials | Entered Mines 944 | -10/Mines | Lost 4 parts (1n1u2w) 989 | -10/Mines | Learned location of 1 exit from Materials 1071 | -10/Mines | Core integrity fell below 50% 1300 | -10/Mines | Discovered new exit (range 9) 1304 | -10/Mines | Learned location of Storage (-8) 1312 | -10/Mines | Entered Materials 1312 | -9/Materials | Evolved 2 slots: Propulsion x1, Utility x1 1313 | -9/Materials | Identified exit to Materials 1313 | -9/Materials | Discovered new exit (range 14) 1564 | -9/Materials | Build established: Scavenger-Mutant 1633 | -9/Materials | Lost 4 parts (2n2w) 1659 | -9/Materials | Self-destructed Last Messages --------------- 01613_ K-01 Serf collects debris. 01614_ G-34 Mercenary destroyed. 01614_ K-01 Serf collects debris. 01619_ R-06 Scavenger collects Aluminum Leg. 01620_ K-01 Serf collects debris. 01637_ Acquired Huge Storage Unit. 01640_ Dropped Huge Storage Unit. 01642_ Dropped Ion Engine. 01648_ Connecting with Terminal... 01648_ Current location identified: Materials >>Trojan(Botnet) Trojan loaded successfully. Testing... Terminal linked with 0 systems. Awaiting botnet instructions. >>Trojan(Assimilate) Trojan loaded successfully. Testing... System interface override in place. 01657_ T-07 Excavator is excavating. Map ----- +----------------------------------------------------+ | ?????????????????????????????????????????????????? | | ?????????????????????????????????????????????????? | | ?????????????????????????????????????????????????? | | ?????????????????????????????????????????????????? | | ?????????????????????????????????????????????????? | | ?????????????????????????????????????????????????? | | ?????????????????????????????????????????????????? | | ?????????????????????????????????????????????????? | | ?????????????????????????????????????????????????? | | ?????????????????????????????????????????????????? | | ?????????????????????????????????????????????????? | | ?????????????????????????????????????????????????? | | ?????????????????????????????????????????????????? | | ?????????????????????????????????????????????????? | | ?????????????????????????????????????????????????? | | ?????????????????????????????????????????????????? | | ?????????????????????????????????????????????????? | | ????????????####?????????????????????????????????? | | ????????????# +????????????????????????????????? | | ?????"??????# #????????????????????????????????? | | ?????" ?????# +????????????????????????????????? | | ????#"| ????# #?#??????????????????????????????? | | ????#"" ???# ### #########+###+######?????????? | | ????#"| ???# a ????????? | | ?????" ??# k ????????? | | ?????""" ?# u@ t ????????? | | ???????# ## ##+#####/########t#??????????????? | | ???????# # * #??????????????????????? | | ???????+ + !! ##?????????????????????? | | ???????# # !! #?????????????????????? | | ???????# # "T" ##?????????????????????? | | ???????# ###+############??????????????????????? | | ???????# ??#| ########?????????????????? | | ???????????# """" # !# ####??????????????? | | ???????????# """"""""" # [%% #??????????????? | | ???????????# """ """ + !!! #??????????????? | | ???????????#%% # % #??????????????? | | ???????????##+#####+### #??????????????? | | ?????????? ## "" #??????????????? | | ????????? " " """ #??????????????? | | ???????# """ ""####="R" """ #??????????????? | | ???????# """ Y"#??# """ #??????????????? | | ???????# """ ""#########+####????#######???? | | ???????# # # ####### #???? | | ???????# + # #???? | | ??????? ?? # [* + % #???? | | ????????????## ##### # [= # #???? | | ?????????????? ???? # [= # ####### #???? | | ?????????????? ?????# ### ######## ##???? | | ??????????????##?????# #?# # =# #????? | +----------------------------------------------------+ Best States ------------- Heat Dissipation 42 Energy Generation 10 Energy Capacity 250 Matter Stores 300 Matter Capacity 300 Sight Range 18 Terrain Scan Density 10 Armor Coverage 150 Evasion (%) 50 Recoil Reduction 1 Item Schematics ----------------- None Robot Schematics ------------------ None Fabricated ------------ Nothing Repaired ---------- Nothing Studied --------- None Alien Tech Used ----------------- None Achievements -------------- None Challenges ------------ None Game ------ Seed WaveDoorRocket Manual? 0 Play Time 00:15:27 Cumulative 33.1 hours Start 2026.04.23 @ 13:02:39 End 2026.04.24 @ 09:17:15 Sessions 3 Manual Loads 0 Difficulty Rogue Special Mode None Game No. 24 Rogue 24 Adventurer 0 Explorer 0 Win Type - Total 0 Types 0/0/0/0/0/0/0/0/0/0 Lore% 15 Gallery% 31 Achievement% 23 Wizard Run 0 Options --------- Layout 1 ASCII 0 Keyboard 0 Movement Mouse Keybinds 0 Fullscreen 2 Font 32/SmallcapsGlow Map View 50x35 Zoom Use 0% Tactical HUD 1 Map Filters NONE Filters NONE Steam 1 RUN: 1ac64ae4-fec1-4f9b-9414-2c044c76e136